Cogmind - Beta 13 *** ADVENTURER MODE // 2024.08.01 @ 22:28:03 Player: Gder Result: Self-destructed Performance ------------- Evolutions (2) 1000 Regions Visited (5) 1000 Robots Destroyed (50) 250 Value Destroyed (986) 986 Prototype IDs (4) 80 Alien Tech Used (0) 0 Bonus (180) 180 TOTAL SCORE: 3496 Bonus ------- High Alert Combat Kills 62 Follower Combat Kills 266 Friendly Fire -148 Cogmind --------- Core Integrity 550/550 Matter 172/300 Energy 124/125 System Corruption 0% Temperature Cool (3) Movement Flying (34) Location -8/Materials Parts ------- > --- POWER (1) -------- Light Ion Engine > --- PROPULSION (3) --- Flight Unit Improved Flight Unit Improved Flight Unit > --- UTILITY (5) ------ Structural Scanner Visual Processing Unit Advanced Visual Processing Unit Sensor Array Signal Interpreter > --- WEAPON (2) ------- Improved Assault Rifle Improved Assault Rifle > --- INVENTORY (5) ---- Improved Ion Engine Flight Unit Cesium-ion Thruster Sensor Array ECM Suite Peak State ------------ > --- POWER ------------ Light Ion Engine > --- PROPULSION ------- Flight Unit Improved Flight Unit Improved Flight Unit > --- UTILITY ---------- Structural Scanner Visual Processing Unit Advanced Visual Processing Unit Sensor Array Signal Interpreter > --- WEAPON ----------- Improved Assault Rifle Improved Assault Rifle > --- INVENTORY -------- Improved Ion Engine Flight Unit Sensor Array ECM Suite [Rating: 22] Favorites ----------- Power Ion Engine Engine Ion Engine Propulsion Aluminum Leg Leg Aluminum Leg Flight Unit Improved Flight Unit Utility Medium Storage Unit Device Sensor Array Storage Medium Storage Unit Processor Signal Interpreter Weapon Assault Rifle Ballistic Gun Assault Rifle Launcher Rocket Launcher Build | -11 -10 -10 -9 -9 -8 ------- Run | Yrd Mat Min Mat Sto Mat Slots Evolved 4 | . . . 2 . 2 Power . | . . . . . . Propulsion 1 | . . . . . 1 Utility 3 | . . . 2 . 1 Weapon . | . . . . . . Parts Attached 32 | 8 2 5 5 6 6 Power 3 | 1 . 1 . . 1 Engine 3 | 1 . 1 . . 1 Core . | . . . . . . Reactor . | . . . . . . Propulsion 10 | 2 . 2 . 3 3 Treads . | . . . . . . Leg 7 | 2 . 2 . 3 . Wheel . | . . . . . . Hover . | . . . . . . Flight 3 | . . . . . 3 Utility 9 | 3 2 . 2 . 2 Device 4 | 2 1 . 1 . . Storage 2 | 1 1 . . . . Processor 3 | . . . 1 . 2 Hackware . | . . . . . . Protection . | . . . . . . Artifact . | . . . . . . Weapon 10 | 2 . 2 3 3 . Energy Gun . | . . . . . . Energy Cannon . | . . . . . . Ballistic Gun 6 | 2 . . 2 2 . Ballistic Cannon . | . . . . . . Launcher 4 | . . 2 1 1 . Special Weapon . | . . . . . . Impact Weapon . | . . . . . . Slashing Weapon . | . . . . . . Piercing Weapon . | . . . . . . Special Melee Weapon . | . . . . . . Unidentified Prototypes . | . . . . . . Parts Lost 1 | . . . . 1 . Power . | . . . . . . Propulsion . | . . . . . . Utility . | . . . . . . Weapon 1 | . . . . 1 . Highest Loss Streak 1 | . . . . 1 . To Critical Strikes . | . . . . . . Average Slot Usage (%) 99 | . 100 100 99 100 94 Engine 12 | . 14 14 11 11 9 Leg 24 | . 28 28 22 22 1 Device 17 | . 14 14 21 22 18 Storage 12 | . 14 14 11 11 1 Processor 5 | . . . 11 11 23 Ballistic Gun 18 | . 28 16 20 13 18 Launcher 7 | . . 11 1 8 . Naked Turns . | . . . . . . Heaviest Build 26 | 15 20 24 25 26 11 Greatest Support 25 | 20 20 25 25 25 14 Greatest Overweight (x) 1 | 1 . 1 . 1 . Average Overweight (x) . | . . . . . . Largest Inventory Capacity 10 | 8 10 10 10 10 10 Average Capacity 9 | 6 9 10 10 10 5 Most Carried 10 | 3 10 10 10 10 9 Average Carried 9 | 1 7 9 8 9 5 Final Capacity 10 | 8 10 10 10 10 5 Final Carried 10 | 3 10 10 10 9 5 Class Distribution -------------------- 58% | Mutant 27% | Skirmisher 11% | Commander-Skirmisher Dominant Class ---------------- Mutant | -10/Materials Mutant | -10/Mines Skirmisher | -9/Materials Skirmisher | -9/Storage Scout | -8/Materials Resources | -11 -10 -10 -9 -9 -8 ----------- Run | Yrd Mat Min Mat Sto Mat Matter Collected 991 | 322 134 124 39 372 . Remotely . | . . . . . . Salvage Created 1301 | 137 177 272 26 689 . Parts 94 | 8 8 20 8 50 . Haulers Intercepted 1 | . 1 . . . . Recyclers Shooed 2 | 1 . 1 . . . Parts Field Recycled . | . . . . . . Retrieved Matter . | . . . . . . Parts Self-Destructed . | . . . . . . Prevented . | . . . . . . Kills | -11 -10 -10 -9 -9 -8 ------- Run | Yrd Mat Min Mat Sto Mat Combat Hostiles Destroyed 34 | . 5 6 4 19 . Guns 14 | . 5 2 1 6 . AOE 20 | . . 4 3 13 . Classes Destroyed 10 | 2 4 3 . 1 . Worker 2 | . . 1 . 1 . Builder 1 | . . 1 . . . Tunneler 2 | 2 . . . . . Hauler 1 | . 1 . . . . Recycler 6 | 1 . 2 . 3 . Operator 1 | . . . . 1 . Watcher 2 | . 1 . . 1 . Swarmer 17 | . 3 3 4 7 . Grunt 13 | . 2 2 . 9 . Sentry 5 | . . 1 . 4 . Best Kill Streak 9 | 3 3 5 3 9 . Combat Bots Only 8 | . 3 3 3 8 . Max Kills in Single Turn 3 | 1 1 3 3 3 . Gunslinging . | . . . . . . Exploded 3 | . . 2 3 3 . Melee . | . . . . . . Uniques/NPCs Destroyed . | . . . . . . Combat | -11 -10 -10 -9 -9 -8 -------- Run | Yrd Mat Min Mat Sto Mat Hostile Shots Fired 97 | . 26 11 12 41 7 Missed 28 | . 3 3 4 14 4 Damage Taken 702 | . 186 69 46 365 36 Core 165 | . 8 12 23 122 . Absorbed by Shields . | . . . . . . Ignored by Resistances 217 | . 60 22 16 109 10 Core Remaining (%) 85 | 100 . 92 . 63 . Volleys Fired 79 | 7 21 10 7 34 . Largest 2 | 2 2 2 2 2 . Hottest 56 | 40 40 50 40 56 . Shots Fired 131 | 14 42 11 13 51 . Gun 102 | 14 42 5 12 29 . Cannon . | . . . . . . Launcher 29 | . . 6 1 22 . Special . | . . . . . . Kinetic 102 | 14 42 5 12 29 . Thermal . | . . . . . . Explosive 29 | . . 6 1 22 . Electromagnetic . | . . . . . . Robot Hit Streak 11 | 5 10 10 11 7 . Robot Miss Streak 2 | 2 2 . 2 1 . Penetration Max . | . . . . . . Secondary Targets 1 | . 1 . . . . Max Gunslinging Chain 1 | . 1 . . . . Shots Hit Robots 94 | 10 33 9 8 34 . Core Hits 72 | 4 11 15 4 38 . Critical Kills . | . . . . . . Critical Parts Destroyed . | . . . . . . Critical Strikes . | . . . . . . Melee Attacks . | . . . . . . Impact . | . . . . . . Slashing . | . . . . . . Piercing . | . . . . . . Sneak Attacks . | . . . . . . Combat Hostiles . | . . . . . . Follow-up Attacks . | . . . . . . Damage Inflicted 2711 | 125 414 482 296 1394 . Guns 1020 | 125 414 67 87 327 . Cannons . | . . . . . . Explosions 1624 | . . 400 206 1018 . Melee . | . . . . . . Ramming 67 | . . 15 3 49 . Kinetic 1020 | 125 414 67 87 327 . Thermal 57 | . . 57 . . . Explosive 1567 | . . 343 206 1018 . Electromagnetic . | . . . . . . Impact . | . . . . . . Slashing . | . . . . . . Piercing . | . . . . . . Highest Corruption . | . . . . . . Average Corruption . | . . . . . . Corruption Purged . | . . . . . . Corruption Blocked . | . . . . . . Overload Shots . | . . . . . . Overflow Damage 23 | . . . . 23 . Projectiles . | . . . . . . Explosions 23 | . . . . 23 . Melee . | . . . . . . Knockbacks . | . . . . . . Impact . | . . . . . . Kinetic . | . . . . . . Secondary . | . . . . . . Self-Inflicted Damage 60 | . . . . 60 . Shots 3 | . . . . 3 . Rammed . | . . . . . . Targets Rammed 10 | . . 2 1 7 . Kicked 10 | . . 2 1 7 . Crushed . | . . . . . . Highest Temperature 22 | . 2 4 . 22 13 Average Temperature 4 | . 2 4 . 6 13 Received Heat Transfer 333 | . 84 36 . 168 45 Siege Activations . | . . . . . . Robots Corrupted . | . . . . . . Combat Hostiles . | . . . . . . Parts Fried . | . . . . . . Impact Corruptions . | . . . . . . Robots Melted . | . . . . . . Combat Hostiles . | . . . . . . Parts Melted 1 | . . . . 1 . Heat Transferred 50 | . . 50 . . . Parts Sabotaged . | . . . . . . Parts Stolen . | . . . . . . Parts Stripped . | . . . . . . Power Chain Reactions . | . . . . . . Alert | -11 -10 -10 -9 -9 -8 ------- Run | Yrd Mat Min Mat Sto Mat Peak Influence 696 | 15 150 195 185 696 178 Initial 178 | . 8 9 . 59 178 Average 167 | 6 90 68 122 346 178 Maximum Alert Level 2 | . . . . 2 . Low Security (%) 73 | 100 100 100 100 19 100 Level 1 14 | . . . . 43 . Level 2 12 | . . . . 36 . Level 3 . | . . . . . . Level 4 . | . . . . . . Level 5 . | . . . . . . High Security . | . . . . . . Max Security . | . . . . . . Squads Dispatched 9 | . 1 . . 8 . Investigation 2 | . 1 . . 1 . Extermination . | . . . . . . Reinforcement 4 | . . . . 4 . Assault . | . . . . . . Garrison 3 | . . . . 3 . Intercept . | . . . . . . Searches Triggered . | . . . . . . Construction Impeded 1 | . . . . 1 . Haulers Reinforced . | . . . . . . Active Scanning Responses . | . . . . . . Cargo Convoy Interrupts . | . . . . . . Stealth | -11 -10 -10 -9 -9 -8 --------- Run | Yrd Mat Min Mat Sto Mat Distress Signals 1 | . . . . 1 . Communications Jammed . | . . . . . . Distress Signals . | . . . . . . Times Spotted 56 | . 9 7 10 23 7 Peak Tracking Total 7 | . 3 3 4 4 7 Tactical Retreats . | . . . . . . Traps | -11 -10 -10 -9 -9 -8 ------- Run | Yrd Mat Min Mat Sto Mat Traps Triggered 5 | . 1 . . 4 . Indirectly . | . . . . . . Trap Hack Attempts . | . . . . . . Triggered . | . . . . . . Disarmed . | . . . . . . Reprogrammed . | . . . . . . Reused . | . . . . . . Traps Extracted . | . . . . . . Installed . | . . . . . . Triggered . | . . . . . . Machines | -11 -10 -10 -9 -9 -8 ---------- Run | Yrd Mat Min Mat Sto Mat Machines Disabled 5 | . . 1 . 4 . Max in Single Turn 2 | . . 1 . 2 . Machines Repaired . | . . . . . . Machines Dismantled . | . . . . . . Machines Sabotaged . | . . . . . . Overloaded Fab Kills . | . . . . . . Hacking | -11 -10 -10 -9 -9 -8 --------- Run | Yrd Mat Min Mat Sto Mat Machines Accessed 14 | . 4 1 . 8 1 Terminals 13 | . 4 . . 8 1 Fabricators . | . . . . . . Repair Stations . | . . . . . . Recycling Units . | . . . . . . Scanalyzers . | . . . . . . Garrison Access . | . . . . . . Total Hacks 25 | . 10 1 . 13 1 Successful 15 | . 7 1 . 7 . Failed 10 | . 3 . . 6 1 Catastrophic . | . . . . . . Database Lockouts . | . . . . . . Manual 6 | . 2 . . 3 1 Terminals 24 | . 10 . . 13 1 Fabricators . | . . . . . . Repair Stations . | . . . . . . Recycling Units . | . . . . . . Scanalyzers . | . . . . . . Garrison Access . | . . . . . . Terminal Hacks 15 | . 7 1 . 7 . Robot Analysis 1 | . 1 . . . . Prototype ID Bank 2 | . 2 . . . . Open Door 5 | . . 1 . 4 . Level Access Points 1 | . . . . 1 . Branch Access Points 1 | . 1 . . . . Transport Status 1 | . 1 . . . . Recall Investigation 1 | . 1 . . . . Hauler Manifests 1 | . 1 . . . . Zone Layout 2 | . . . . 2 . Fabricator Hacks . | . . . . . . Repair Station Hacks . | . . . . . . Recycling Unit Hacks . | . . . . . . Scanalyzer . | . . . . . . Garrison Access Hacks . | . . . . . . Unauthorized Hacks . | . . . . . . Terminals . | . . . . . . Fabricators . | . . . . . . Repair Stations . | . . . . . . Recycling Units . | . . . . . . Scanalyzers . | . . . . . . Garrison Access . | . . . . . . Data Cores Recovered . | . . . . . . Used . | . . . . . . Hacking Detections 8 | . 3 . . 4 1 Full Trace Events 1 | . . . . 1 . Feedback Events . | . . . . . . Feedback Blocked . | . . . . . . Robot Schematics Acquired . | . . . . . . Robots Built . | . . . . . . Authchips . | . . . . . . Time . | . . . . . . Total Robot Build Rating . | . . . . . . Part Schematics Acquired . | . . . . . . Parts Built . | . . . . . . Authchips . | . . . . . . Time . | . . . . . . Total Part Build Rating . | . . . . . . Parts Repaired . | . . . . . . Time . | . . . . . . Parts Recycled . | . . . . . . Recycled Matter . | . . . . . . Retrieved Matter . | . . . . . . Retrieved Components . | . . . . . . Parts Scanalyzed . | . . . . . . Part Schematics Acquired . | . . . . . . Parts Damaged . | . . . . . . Bothacking | -11 -10 -10 -9 -9 -8 ------------ Run | Yrd Mat Min Mat Sto Mat Used RIF Installer . | . . . . . . Robots Hacked . | . . . . . . Non-combat . | . . . . . . Combat . | . . . . . . Robot Hacks Applied . | . . . . . . Relay Couplers Released . | . . . . . . Fabnet Peak Effective % . | . . . . . . Robots Rewired . | . . . . . . Allies Hacked . | . . . . . . Hacks Repelled . | . . . . . . Allies | -11 -10 -10 -9 -9 -8 -------- Run | Yrd Mat Min Mat Sto Mat Total Allies 14 | . . 4 . 10 . Largest Group 10 | . . 4 4 10 . Highest-Rated Group 88 | . . 71 71 88 . Highest-Rated Ally 31 | . . 31 31 16 . Total Orders . | . . . . . . Ally Attacks 98 | . . 6 22 70 . Total Damage 1000 | . . 99 219 682 . Kills 14 | . . 1 3 10 . Allies Corrupted . | . . . . . . Allies Melted . | . . . . . . Intel | -11 -10 -10 -9 -9 -8 ------- Run | Yrd Mat Min Mat Sto Mat Robot Analysis Total 1 | . 1 . . . . Derelict Logs Recovered 1 | . . 1 . . . Drone Launches . | . . . . . . Drone Recoveries . | . . . . . . Exploration | -11 -10 -10 -9 -9 -8 ------------- Run | Yrd Mat Min Mat Sto Mat Turns Passed 2480 | 86 550 831 135 816 62 Spaces Moved 1717 | 46 389 565 78 538 101 Core 6 | 6 . . . . . Treads . | . . . . . . Legs 1610 | 40 389 565 78 538 . Wheels . | . . . . . . Hover . | . . . . . . Flight 101 | . . . . . 101 Fastest Speed 34 | 50 120 120 120 120 34 Average Speed 120 | 111 120 137 120 121 34 Slowest Speed 190 | 120 120 190 120 190 34 Overloaded Moves . | . . . . . . Propulsion Burnouts . | . . . . . . Robots Hopped 1 | . . . . . 1 Cave-ins Triggered . | . . . . . . Exploration Rate (%) 47 | 5 66 98 15 84 14 Regions Visited 5 Branch Regions 2 Pre-discovered Areas 1 | . . 1 . . . Known Exits Taken 3 | . 1 . 1 1 . Unknown Exits Taken 2 | 1 . 1 . . . Scrap Searched 1 | . . 1 . . . Spaces Dug 14 | . . . . 14 . Terrain Destroyed 239 | . . 48 9 182 . Melee . | . . . . . . Projectile . | . . . . . . AOE 239 | . . 48 9 182 . Terrain Rammed . | . . . . . . Walls Destroyed . | . . . . . . Machines Disabled . | . . . . . . Actions | -11 -10 -10 -9 -9 -8 --------- Run | Yrd Mat Min Mat Sto Mat Total 1985 | 63 429 607 106 652 128 Wait 110 | . 11 21 10 51 17 Move 1710 | 45 388 564 77 537 99 Hop 1 | . . . . . 1 Pick Up 17 | 2 6 1 4 3 1 Fast Attach 11 | 8 1 1 . . 1 Attach 7 | . . . 2 1 4 Detach 1 | 1 . . . . . Swap 14 | . 1 4 3 5 1 Drop 18 | . 1 4 2 7 4 Fire 79 | 7 21 10 7 34 . Melee . | . . . . . . Ram . | . . . . . . Kick 10 | . . 2 1 7 . Crush . | . . . . . . Escape Stasis 5 | . . . . 5 . Rewire 2 | . . . . 2 . Trap . | . . . . . . Miscellaneous . | . . . . . . Route ------- -11/Scrapyard -10/Materials (discovered 4 exits: [*Mat x2] / *Min x2) -10/Mines (discovered 2 exits: [*Mat x2]) -9/Materials -9/Storage -8/Materials History --------- Turn | Location | Event 7 | -11/Scrapyard | Discovered new exit (range 14) 87 | -11/Scrapyard | Entered Materials 283 | -10/Materials | Discovered new exit (range 15) 318 | -10/Materials | Build established: Mutant 322 | -10/Materials | Identified exit to Mines 432 | -10/Materials | Discovered new exit (range 16) 637 | -10/Materials | Entered Mines 658 | -10/Mines | Discovered new exit (range 15) 921 | -10/Mines | Assisted by bots powering up and referring to "LRC-V3" 1027 | -10/Mines | Met a Derelict who couldn't figure out how to use a Trap Extractor 1214 | -10/Mines | Received a Mining Laser from a helpful Derelict 1272 | -10/Mines | Found a damaged Exp. Sensor Array with a note attached 1395 | -10/Mines | Received a Rocket Launcher from a helpful Derelict 1404 | -10/Mines | Discovered new exit (range 4) 1468 | -10/Mines | Entered Materials 1468 | -9/Materials | Accompanied by 4 allies 1468 | -9/Materials | Evolved 2 slots: Utility x2 1580 | -9/Materials | Discovered new exit (range 8) 1599 | -9/Materials | Identified exit to Storage 1603 | -9/Materials | Entered Storage 1679 | -9/Storage | Identified exit to Materials 1779 | -9/Storage | Build established: Skirmisher 1806 | -9/Storage | Destroyed 8 combat bots 1866 | -9/Storage | Assisted by bots powering up and referring to "LRC-V3" 2151 | -9/Storage | Garrison activated, responded to threat 2180 | -9/Storage | Lost 9 allies 2419 | -9/Storage | Entered Materials 2419 | -8/Materials | Evolved 2 slots: Propulsion x1, Utility x1 2481 | -8/Materials | Self-destructed Last Messages --------------- 02414_ The unstable cave ceiling collapses. PARAMETERS=PROPULSION+1,UTILITY+1 LOCATION=MATERIALS GOAL=ESCAPE 02419_ Dropped Carbon-fiber Leg. 02420_ Dropped Aluminum Leg. 02424_ Dropped Imp. Assault Rifle. 02425_ Dropped Med. Storage Unit. 02429_ Connecting with Terminal... 02429_ Connecting with Terminal... 02432_ Acquired Adv. Visual Processing Unit. 02434_ Acquired Cesium-ion Thruster. 02462_ K-01 Serf collects debris. 02462_ C-30 ARC bursts open, deploying its payload. 02462_ L-31 Rogue unfolds itself. 02462_ G-47 Trooper unfolds itself. 02473_ Critical hit (Burn: +37). 02476_ K-01 Serf collects debris. 02477_ T-07 Excavator is excavating. 02481_ Connecting with Terminal... Map ----- +----------------------------------------------------+ | ?????????????????????????????????????????????????? | | ?????????????????????????????????????????????????? | | ?????????????????????????????????????????????????? | | ?????????????????????????????????????????????????? | | ?????????????????????????????????????????????????? | | ?????????????????????????????????????????????????? | | ?????????????????????????????????????????????????? | | ?????????????????????????????????????????????????? | | ?????####????????????????????????????????????????? | | ?????#####???????????????????????????????????????? | | ????### ####?????????????????????????????????????? | | ????#### ### ###????????????????????????????? | | ????## ###+######????????????????????????????? | | ????## ????????????????????????????? | | ????## ???????x?X????????????????????? | | ????## ???????????????????????????????? | | ????## !!! ##???????????????????????????????? | | ????## !!!" ##???????????????????????????????? | | ###### !!"% ##############???????????????????? | | ###### x ##############???????????????????? | | # ### ##???????????????????? | | # """" ### ! ##???????????????????? | | # """" ### """ ##???????????????????? | | # """" # """ ##???????????????????? | | + + """ """##???????????????????? | | # x x # @T"##???????????????????? | | # ###+#+## = """##???????????????????? | | ## # ## ##???????????????????? | | ! ## # #############???????????????????? | | ###+### # #############???????????????????? | | ### ### # ##??????????????????????????????? | | ?## ### # ##??????????????????????????????? | | ?## ### # ##??????????????????????????????? | | ?## ### # ##??????????????????????????????? | | ?## ### # ##??????????????????????????????? | | ?## ### # ##??????????????????????????????? | | ### ### # [[##??????????????????????????????? | | ###+### # [ ##??????????????????????????????? | | # # ##??????????????????????????????? | | # #############?????????????????????????? | | # #############?????????????????????????? | | # ???????????????????????? | | + ???????????????????????? | | """ # ?????????????????????? | | """ # #################+?????????????????????? | | """ # ############## ?????????????????????? | | # T##???????????????????????????????????? | | ####### ""##???????????????????????????????????? | | ####### ####???????????????????????????????????? | | ?????## ####???????????????????????????????????? | +----------------------------------------------------+ Best States ------------- Heat Dissipation 31 Energy Generation 12 Energy Capacity 265 Matter Stores 300 Matter Capacity 300 Sight Range 20 Robot Scan Range 14 Terrain Scan Density 10 Resistance: KI 20 Resistance: TH 20 Resistance: EX 20 Resistance: EM 20 Resistance: I 20 Resistance: S 20 Resistance: P 20 Evasion (%) 63 Offensive Hacking 10 Item Schematics ----------------- None Robot Schematics ------------------ None Fabricated ------------ Nothing Alien Tech Used ----------------- None Achievements -------------- None Challenges ------------ None Game ------ Seed IntegrityRelayDisintegrator Manual? 0 Play Time 00:38:19 Cumulative 22.4 hours Start 2024.07.29 @ 22:04:36 End 2024.08.01 @ 22:28:03 Sessions 3 Manual Loads 0 Difficulty Adventurer Special Mode None Game No. 12 Rogue 0 Adventurer 8 Explorer 4 Win Type - Total 0 Types 0/0/0/0/0/0/0/0/0 Lore% 14 Gallery% 24 Achievement% 24 Wizard Run 0 Options --------- Layout 0 ASCII 0 Keyboard 0 Movement Numpad Keybinds 0 Fullscreen 1 Font 18/SmallcapsGlow Map View 76x50 Zoom Use 0% Tactical HUD 1 Map Filters NONE Filters NONE Steam 1 RUN: d55a54dc-e91b-4d30-a455-020d2b625c23